bitfinex/quotes_SOLUSD_20250305
["timestamp","ask_amount","ask_price","bid_price","bid_amount"]
[1741135898504,171.87077449,143.31,143.3,0.03]
[1741135898711,61.87527449,143.31,143.3,0.03]
[1741135899072,79.60429763,143.31,143.27,0.03]
[1741135899273,53.29297449,143.28,143.27,0.03]
[1741135899582,83.09297449,143.29,143.27,0.03]
[1741135899787,8.5823,143.31,143.27,0.03]
[1741135899788,135.09297449,143.3,143.27,0.03]
[1741135899987,53.29297449,143.29,143.27,0.03]
[1741135900201,53.29297449,143.28,143.27,0.03]
[1741135900584,60.27227449,143.28,143.27,0.03]
[1741135906393,60.55659763,143.28,143.27,0.03]
[1741135906593,78.00489763,143.28,143.21,20.03]
[1741135906805,53.29297449,143.26,143.21,20.03]
[1741135907816,29.8,143.27,143.21,53.32297449]
[1741135908118,53.29297449,143.26,143.21,0.03]
[1741135908482,6.9793,143.28,143.21,0.03]
[1741135908714,53.29297449,143.26,143.21,0.03]
[1741135909487,60.27327449,143.26,143.21,0.03]
[1741135911193,53.29297449,143.26,143.21,0.03]
[1741135911392,60.27327449,143.26,143.21,0.03]
[1741135911576,6.9803,143.26,143.21,0.03]
[1741135911780,60.27327449,143.26,143.21,0.03]
[1741135912181,6.9803,143.26,143.21,0.03]
[1741135912376,81.8,143.25,143.21,0.03]
[1741135912788,81.8,143.25,143.21,32.88045143]
[1741135913189,81.8,143.25,143.21,0.03]
[1741135914222,81.8,143.25,143.21,33.16477457]
[1741135914527,81.8,143.25,143.22,39.83265143]
[1741135915024,81.8,143.25,143.22,6.9822]
[1741135917800,32.85045143,143.23,143.21,0.03]
[1741135918006,32.85045143,143.22,143.21,0.03]
[1741135920529,39.83265143,143.22,143.21,0.03]
[1741135923142,88.7818,143.23,143.21,0.03]
[1741135923331,32.85045143,143.22,143.21,0.03]
[1741135924639,32.85045143,143.16,143.15,0.03]
[1741135925940,23.3404,143.19,143.15,0.03]
[1741135925941,32.85045143,143.18,143.15,0.03]
[1741135926654,6.9826,143.22,143.16,32.85045143]
[1741135926956,69.63195143,143.24,143.18,32.85045143]
[1741135927310,69.63185143,143.24,143.18,32.85045143]
[1741135927956,32.85045143,143.24,143.18,32.85045143]
[1741135928244,32.85045143,143.21,143.16,6.0874]
[1741135928558,32.85045143,143.19,143.15,0.03]
[1741135928756,39.83465143,143.18,143.15,0.03]
[1741135929763,32.85045143,143.17,143.15,0.03]
[1741135930060,81.8,143.18,143.15,0.03]
[1741135930227,114.65045143,143.18,143.15,0.03]
[1741135930431,32.85045143,143.16,143.15,0.03]
[1741135931129,81.8,143.17,143.15,0.03]
[1741135931553,127.51385143,143.2,143.15,0.03]
[1741135931936,81.8,143.2,143.15,0.03]
[1741135932141,81.8,143.2,143.16,32.85045143]
[1741135932665,88.7833,143.2,143.15,32.88045143]
[1741135932962,81.8,143.2,143.15,32.88045143]
[1741135933255,88.7833,143.2,143.15,32.88045143]
[1741135933457,88.7833,143.2,143.15,0.03]
[1741135933659,81.8,143.2,143.15,39.86605143]
[1741135934064,88.7833,143.2,143.15,32.88045143]
[1741135934348,81.8,143.2,143.16,0.28432314]
[1741135934555,81.8,143.2,143.16,33.13477457]
[1741135934760,39.83225143,143.23,143.16,33.13477457]
[1741135935058,81.8,143.22,143.17,39.83515143]
[1741135935259,81.8,143.22,143.18,33.13477457]
[1741135935759,81.8,143.22,143.18,0.28432314]
[1741135935930,6.9822,143.23,143.18,0.28432314]
[1741135936147,81.8,143.25,143.2,32.85045143]
[1741135936355,81.8,143.25,143.21,32.85045143]
[1741135937062,81.8,143.25,143.21,39.83295143]
[1741135937343,6.9807,143.26,143.21,32.85045143]
[1741135937577,6.9807,143.26,143.21,0.28432314]
[1741135938140,57.28185143,143.26,143.19,32.85045143]
[1741135938344,32.85045143,143.23,143.18,81.6]
[1741135938570,32.85045143,143.24,143.18,114.48045143]
[1741135938775,32.85045143,143.25,143.18,121.46455143]
[1741135938968,32.85045143,143.25,143.19,32.85045143]
[1741135939161,6.9812,143.24,143.19,32.85045143]
[1741135939378,6.9812,143.24,143.18,114.48045143]
[1741135939578,39.83165143,143.24,143.18,114.48045143]
[1741135940477,6.9812,143.24,143.19,32.85045143]
[1741135940977,6.9806,143.26,143.21,52.85045143]
[1741135941991,39.83105143,143.26,143.21,20.0]
[1741135942293,121.63105143,143.26,143.21,20.0]
[1741135943093,88.7806,143.26,143.21,20.0]
[1741135944190,121.63105143,143.26,143.21,20.0]
[1741135945181,32.85045143,143.24,143.18,81.63]
[1741135945966,139.08175143,143.26,143.19,33.13477457]
[1741135946171,139.08175143,143.26,143.2,32.85045143]
[1741135946378,88.7806,143.26,143.21,33.13477457]
[1741135946689,7.013,143.27,143.22,32.85045143]
[1741135946856,0.033,143.27,143.23,52.85045143]
[1741135947057,0.033,143.27,143.24,0.28432314]
[1741135947316,0.033,143.27,143.26,53.13477457]
[1741135948388,0.033,143.27,143.26,372.11507457]
[1741135949092,0.033,143.27,143.26,20.0]
[1741135950475,0.033,143.27,143.24,6.6581]
[1741135951809,0.033,143.27,143.23,0.28432314]
[1741135952106,0.033,143.27,143.24,32.85045143]
[1741135952481,0.033,143.27,143.25,33.13477457]
[1741135952709,0.033,143.27,143.25,32.85045143]
[1741135952901,0.033,143.27,143.24,32.85045143]
[1741135953105,0.033,143.27,143.23,33.13477457]
[1741135953282,0.033,143.27,143.24,32.85045143]
[1741135953487,0.033,143.27,143.23,40.11627457]
[1741135953809,0.033,143.27,143.24,32.85045143]
[1741135954313,0.033,143.27,143.26,53.13477457]
[1741135954903,0.033,143.27,143.26,134.73477457]
[1741135955110,0.033,143.28,143.27,0.28432314]
[1741135955308,0.033,143.28,143.27,40.79507457]
[1741135955911,0.033,143.28,143.27,47.77487457]
[1741135957015,0.033,143.28,143.27,359.77487457]
[1741135959904,0.033,143.28,143.27,441.37487457]
[1741135960226,0.033,143.28,143.27,129.37487457]
[1741135960721,0.033,143.28,143.27,89.54462314]
[1741135961027,0.033,143.28,143.27,121.71457457]
[1741135961930,32.85045143,143.36,143.27,121.71457457]
[1741135962109,81.8,143.37,143.32,32.85045143]
[1741135962619,81.8,143.37,143.33,32.85045143]
[1741135963214,81.8,143.37,143.33,344.85045143]
[1741135963420,81.8,143.37,143.33,312.0]
[1741135964029,81.8,143.37,143.33,351.82695143]
[1741135966020,29.833,143.4,143.34,0.28432314]
[1741135966021,0.033,143.4,143.34,0.28432314]
[1741135966224,0.033,143.4,143.39,32.85045143]
[1741135966523,0.033,143.4,143.39,20.0]
[1741135967226,0.033,143.4,143.39,32.85045143]
[1741135967419,0.033,143.4,143.39,33.13477457]
[1741135967598,0.033,143.4,143.39,40.10867457]
[1741135968122,0.033,143.4,143.39,121.70867457]
[1741135968320,0.033,143.4,143.37,6.9745]
[1741135968523,0.033,143.4,143.36,6.9754]
[1741135969108,0.033,143.4,143.38,20.0]
[1741135971138,0.033,143.4,143.35,32.85045143]
[1741135973933,0.033,143.4,143.34,344.85045143]
[1741135974134,32.88345143,143.4,143.33,114.45045143]
[1741135974434,32.88345143,143.4,143.32,7.94712314]
[1741135974435,32.85045143,143.39,143.35,20.0]
[1741135975015,32.85045143,143.39,143.32,40.51325143]
[1741135975216,32.85045143,143.38,143.32,0.28432314]
[1741135975724,32.85045143,143.36,143.3,32.85045143]
[1741135975924,81.8,143.37,143.34,32.85045143]
[1741135976128,0.033,143.4,143.35,33.13477457]
[1741135976330,7.0066,143.4,143.35,0.28432314]
[1741135976537,39.85705143,143.4,143.36,20.0]
[1741135976933,57.29075143,143.4,143.34,32.85045143]
[1741135977120,32.85045143,143.38,143.32,32.85045143]
[1741135977455,81.8,143.39,143.33,32.85045143]
[1741135978046,6.9744,143.38,143.33,32.85045143]
[1741135978533,24.4105,143.38,143.32,52.85045143]
[1741135979625,6.9744,143.38,143.32,52.85045143]
[1741135979939,6.9744,143.38,143.33,32.85045143]
[1741135980244,0.033,143.4,143.34,33.13477457]
[1741135980543,0.033,143.4,143.37,32.85045143]
[1741135981754,0.033,143.4,143.39,20.0]
[1741135982129,0.033,143.4,143.37,32.85045143]
[1741135982329,0.033,143.4,143.37,33.13477457]
[1741135983856,0.033,143.4,143.37,345.13477457]
[1741135984147,0.033,143.4,143.39,20.0]
[1741135984747,0.033,143.42,143.41,20.0]
[1741135984937,0.033,143.42,143.41,52.85045143]
[1741135985137,0.033,143.44,143.42,0.28432314]
[1741135985340,0.033,143.46,143.45,20.28432314]
[1741135985532,0.033,143.46,143.45,53.13477457]
[1741135987448,0.033,143.46,143.45,60.10577457]
[1741135987954,0.033,143.46,143.45,53.13477457]
[1741135988256,0.033,143.46,143.45,60.10577457]
[1741135990761,0.033,143.46,143.45,141.70577457]
[1741135991270,0.033,143.46,143.45,453.70577457]
[1741135991951,0.033,143.46,143.45,457.22740377]
[1741135994238,0.033,143.46,143.45,112.0926292]
[1741135994437,0.033,143.46,143.45,144.94308063]
[1741135994654,0.033,143.46,143.45,145.22740377]
[1741135995041,0.033,143.46,143.45,144.94308063]
[1741135995443,0.033,143.46,143.45,145.22740377]
[1741135998585,0.033,143.46,143.45,132.83343321]
[1741136001570,0.033,143.46,143.45,51.23343321]
[1741136004169,0.033,143.46,143.45,363.23343321]
[1741136006806,0.033,143.46,143.45,3.80595234]
[1741136007102,119.53692314,143.45,143.33,81.6]
[1741136007287,119.53692314,143.45,143.33,102.05648087]
[1741136007288,20.45648087,143.4,143.33,102.05648087]
[1741136007465,20.45648087,143.38,143.33,80.65398711]
[1741136007666,20.45648087,143.38,143.32,20.45648087]
[1741136007894,81.8,143.4,143.33,20.45648087]
[1741136008108,102.25648087,143.4,143.33,20.45648087]
[1741136009277,6.9739,143.39,143.33,20.45648087]
[1741136009480,6.9739,143.39,143.31,10.39810244]
[1741136009481,6.9739,143.39,143.34,40.45648087]
[1741136010081,6.9739,143.39,143.33,20.45648087]
[1741136011386,6.9739,143.39,143.34,20.45648087]
[1741136011581,27.42958087,143.41,143.36,20.0]
[1741136011786,6.9731,143.41,143.36,40.45648087]
[1741136012018,27.42958087,143.41,143.36,20.0]
[1741136012301,20.45648087,143.4,143.36,20.0]
[1741136012907,20.45648087,143.41,143.35,40.45648087]
[1741136013308,27.42988087,143.41,143.35,40.45648087]
[1741136014417,81.8,143.44,143.4,20.45648087]
[1741136014619,7.6526,143.45,143.41,20.45648087]
[1741136014993,7.6526,143.45,143.4,40.45648087]
[1741136015396,7.6526,143.45,143.41,20.45648087]
[1741136016333,0.033,143.46,143.45,20.0]
[1741136016632,0.033,143.46,143.45,40.45648087]
[1741136016797,0.033,143.46,143.45,20.0]
[1741136016996,0.033,143.46,143.44,20.45648087]
[1741136016997,0.033,143.46,143.44,40.45648087]
[1741136018503,0.033,143.46,143.45,39.98728289]
[1741136020400,0.033,143.46,143.45,7.25532314]
[1741136020902,0.033,143.46,143.45,39.98728289]
[1741136021303,0.033,143.46,143.45,7.25532314]
[1741136021506,0.033,143.46,143.45,39.98728289]
[1741136024631,0.033,143.46,143.44,100.65398711]
[1741136024933,0.033,143.46,143.4,1.6266]
[1741136024934,0.033,143.46,143.41,32.87412132]
[1741136025229,0.033,143.46,143.44,20.0]
[1741136025423,0.033,143.46,143.45,33.01628289]
[1741136025834,0.033,143.46,143.42,33.01628289]
[1741136026730,0.033,143.46,143.45,20.0]
[1741136026928,0.033,143.46,143.45,52.73195975]
[1741136027104,0.033,143.46,143.45,20.0]
[1741136029532,0.033,143.46,143.45,26.971]
[1741136029838,0.033,143.46,143.41,84.0612415]
[1741136030132,0.033,143.46,143.42,6.9725]
[1741136030345,32.73195975,143.45,143.39,39.70585975]
[1741136030520,32.73195975,143.45,143.39,6.9739]
[1741136030717,0.033,143.46,143.4,32.73195975]
[1741136030921,32.76495975,143.46,143.4,32.73195975]
[1741136031510,0.033,143.46,143.41,33.01628289]
[1741136031726,0.033,143.46,143.42,52.73195975]
[1741136032338,0.033,143.46,143.42,20.0]
[1741136032835,0.033,143.46,143.42,26.9723]
[1741136033045,0.033,143.46,143.42,59.70425975]
[1741136034224,0.033,143.46,143.45,32.73195975]
[1741136034535,87.9738,143.55,143.49,0.28432314]
[1741136034737,114.56495975,143.59,143.56,20.0]
[1741136035038,114.56495975,143.59,143.53,32.73195975]
[1741136035039,0.033,143.59,143.54,0.28432314]
[1741136035426,114.56495975,143.59,143.53,52.73195975]
[1741136035614,32.73195975,143.56,143.5,39.70055975]
[1741136035921,32.73195975,143.56,143.5,351.70055975]
[1741136036128,32.73195975,143.56,143.5,344.73195975]
[1741136036338,114.53195975,143.56,143.5,344.73195975]
[1741136036539,81.8,143.56,143.5,344.73195975]
[1741136036737,81.8,143.56,143.51,32.73195975]
[1741136038947,81.8,143.56,143.5,312.0]
[1741136038948,121.49765975,143.56,143.5,344.73195975]
[1741136039431,38.89895975,143.52,143.44,87.62538711]
[1741136039633,38.89895975,143.52,143.46,32.73195975]
[1741136039850,114.53195975,143.51,143.45,32.73195975]
[1741136040222,114.53195975,143.5,143.44,32.73195975]
[1741136040449,32.73195975,143.48,143.41,32.73195975]
[1741136040626,81.8,143.47,143.41,20.47263478]
[1741136040949,88.7702,143.47,143.41,20.47263478]
[1741136041248,20.47263478,143.46,143.4,20.47263478]
[1741136041442,20.47263478,143.45,143.39,20.47263478]
[1741136041746,81.8,143.44,143.39,20.47263478]
[1741136042518,81.8,143.44,143.39,32.7684639]
[1741136042926,88.7716,143.44,143.39,32.7684639]
[1741136043123,81.8,143.44,143.39,32.7684639]
[1741136043324,88.7716,143.44,143.39,32.7684639]
[1741136043531,32.7684639,143.42,143.36,32.7684639]
[1741136043763,114.5684639,143.42,143.36,32.7684639]
[1741136044048,81.8,143.42,143.37,32.7684639]
[1741136044248,6.4759,143.44,143.4,32.7684639]
[1741136044439,81.8,143.47,143.42,32.7684639]
[1741136044977,81.8,143.47,143.41,32.7684639]
[1741136045139,114.5684639,143.47,143.41,32.7684639]
[1741136045648,121.5385639,143.47,143.41,32.7684639]
[1741136045848,121.5385639,143.47,143.39,32.7684639]
[1741136045849,32.7684639,143.45,143.39,32.7684639]
[1741136046046,32.7684639,143.43,143.37,32.7684639]
[1741136046228,114.5684639,143.43,143.37,32.7684639]
[1741136046422,114.5684639,143.43,143.37,312.0]
[1741136046628,81.8,143.43,143.37,344.7684639]
[1741136047046,81.8,143.43,143.37,351.7429639]
[1741136047246,81.8,143.43,143.39,32.7684639]
[1741136047546,81.8,143.43,143.4,32.7684639]
[1741136047726,81.8,143.43,143.4,0.03]
[1741136048427,63.3684639,143.46,143.4,32.7984639]
[1741136048635,81.8,143.47,143.41,32.7684639]
[1741136048921,81.8,143.47,143.42,32.7684639]
[1741136049125,81.8,143.47,143.41,32.7684639]
[1741136049551,81.8,143.47,143.44,20.0]
[1741136049732,6.447,143.48,143.44,32.7684639]
[1741136049934,1.6478,143.49,143.45,32.7684639]
[1741136050251,1.6478,143.49,143.44,32.7684639]
[1741136050426,1.0878,143.49,143.44,344.7684639]
[1741136051348,1.0878,143.49,143.44,351.7399639]
[1741136051555,1.0878,143.49,143.45,32.7684639]
[1741136051951,1.0878,143.49,143.44,351.7399639]
[1741136053673,1.0878,143.49,143.44,39.7399639]
[1741136054065,8.0569,143.49,143.44,39.7399639]
[1741136055236,8.0569,143.49,143.44,32.7684639]
[1741136055434,81.8,143.48,143.43,20.0]
[1741136055635,32.7684639,143.46,143.4,32.7984639]
[1741136056157,32.7684639,143.46,143.43,20.0]
[1741136056460,81.8,143.45,143.43,20.0]
[1741136056759,81.8,143.45,143.4,7.0034]
[1741136056950,81.8,143.45,143.41,32.7684639]
[1741136057151,81.8,143.44,143.4,0.03]
[1741136057473,121.1925639,143.44,143.4,0.03]
[1741136057655,81.8,143.44,143.42,20.0]
[1741136057858,6.6241,143.48,143.42,32.7684639]
[1741136057859,128.1622639,143.48,143.42,32.7684639]
[1741136058265,128.1622639,143.48,143.41,32.7684639]
[1741136058453,32.7684639,143.47,143.41,32.7684639]
[1741136058756,6.9705,143.46,143.41,32.7684639]
[1741136058947,32.7684639,143.45,143.4,0.03]
[1741136059136,32.7684639,143.44,143.41,20.0]
[1741136059454,114.5684639,143.45,143.41,20.0]
[1741136059977,114.5684639,143.45,143.43,0.03]
[1741136060441,81.8,143.45,143.43,0.03]
[1741136060959,88.7714,143.45,143.43,0.03]
[1741136061172,81.8,143.45,143.43,0.03]
[1741136064343,81.8,143.47,143.43,27.47804261]
[1741136064974,0.033,143.49,143.44,20.47634261]
[1741136065860,0.033,143.49,143.45,20.47634261]
[1741136066054,0.033,143.49,143.46,40.47634261]
[1741136066373,0.033,143.49,143.48,20.47634261]
[1741136066549,0.033,143.49,143.48,27.44594261]
[1741136066748,20.50934261,143.49,143.43,20.50634261]
[1741136066950,20.50934261,143.49,143.46,20.0]
[1741136066951,102.30934261,143.49,143.46,20.0]
[1741136067166,81.833,143.49,143.46,20.0]
[1741136067960,81.833,143.49,143.43,40.50634261]
[1741136068674,88.8025,143.49,143.43,40.50634261]
[1741136069079,109.27884261,143.49,143.43,40.50634261]
[1741136069259,20.47634261,143.48,143.43,0.03]
[1741136069648,109.27884261,143.49,143.43,0.03]
[1741136070148,20.47634261,143.48,143.43,0.03]
[1741136070652,6.97,143.47,143.43,0.03]
[1741136070849,81.8,143.46,143.43,0.03]
[1741136071059,102.27634261,143.45,143.43,0.03]
[1741136071590,81.8,143.45,143.43,0.03]
[1741136072478,102.27634261,143.45,143.43,0.03]
[1741136072971,6.9715,143.44,143.43,0.03]
[1741136074180,27.44784261,143.44,143.43,0.03]
[1741136074474,109.24784261,143.44,143.43,0.03]
[1741136078187,45.16096575,143.44,143.4,0.03]
[1741136078367,20.47634261,143.41,143.4,0.03]
[1741136079480,27.44934261,143.41,143.4,0.03]
[1741136079866,33.83484261,143.41,143.4,0.03]
[1741136081775,33.83484261,143.41,143.33,332.50634261]
[1741136081776,34.11916575,143.41,143.33,312.03]
[1741136081976,20.47634261,143.36,143.33,0.03]
[1741136082282,20.47634261,143.37,143.33,0.03]
[1741136082467,20.47634261,143.38,143.33,0.03]
[1741136082670,81.8,143.37,143.33,0.03]
[1741136083377,102.27634261,143.37,143.33,0.03]
[1741136083684,109.25124261,143.37,143.33,0.03]
[1741136083862,20.47634261,143.36,143.33,0.03]
[1741136084878,20.47634261,143.35,143.33,0.03]
[1741136085062,20.47634261,143.34,143.33,0.03]
[1741136085265,102.27634261,143.35,143.33,0.03]
[1741136085979,81.8,143.35,143.33,0.03]
[1741136088886,88.7759,143.35,143.33,0.03]
[1741136089395,102.27634261,143.35,143.33,0.03]
[1741136089589,81.8,143.35,143.33,0.03]
[1741136092270,102.27634261,143.35,143.33,0.03]
[1741136092569,109.25224261,143.35,143.33,0.03]
[1741136092890,102.27634261,143.35,143.33,0.03]
[1741136093104,81.8,143.35,143.33,0.03]
[1741136100303,114.95044261,143.39,143.33,27.0066]
[1741136100510,81.8,143.38,143.33,27.0066]
[1741136101081,81.8,143.38,143.34,20.47634261]
[1741136101497,81.8,143.38,143.33,40.50634261]
[1741136101696,81.8,143.38,143.33,47.48304261]
[1741136102207,81.8,143.38,143.34,332.47634261]
[1741136102524,81.8,143.38,143.34,312.0]
[1741136102829,81.8,143.38,143.35,20.47634261]
[1741136103016,0.033,143.4,143.37,40.76066575]
[1741136103207,0.033,143.4,143.39,40.47634261]
[1741136103401,0.033,143.4,143.39,20.0]
[1741136103595,0.033,143.4,143.38,20.47634261]
[1741136104408,0.033,143.4,143.39,20.0]
[1741136104609,0.033,143.4,143.38,20.47634261]
[1741136105040,0.033,143.4,143.37,20.0]
[1741136105409,0.033,143.4,143.37,40.47634261]
[1741136105921,0.033,143.4,143.37,359.45114261]
[1741136106126,0.033,143.4,143.38,20.47634261]
[1741136107213,0.033,143.4,143.37,359.45114261]
[1741136109025,0.033,143.4,143.39,20.47634261]
[1741136109429,0.033,143.4,143.38,27.45064261]
[1741136110112,0.033,143.4,143.38,6.9743]
[1741136110437,0.033,143.4,143.38,27.45064261]
[1741136112931,0.033,143.4,143.39,27.45024261]
[1741136113731,0.033,143.4,143.39,27.73456575]
[1741136114113,0.033,143.4,143.39,27.45024261]
[1741136114512,0.033,143.4,143.39,6.9739]
[1741136115533,0.033,143.4,143.38,339.45074261]
[1741136115735,107.97634261,143.39,143.34,0.03]
[1741136115933,20.47634261,143.35,143.34,0.03]
[1741136116429,20.47634261,143.36,143.34,0.03]
[1741136116620,20.47634261,143.35,143.34,0.03]
[1741136117432,27.45194261,143.36,143.34,0.03]
[1741136118530,20.47634261,143.35,143.34,0.03]
[1741136119427,27.45224261,143.35,143.34,0.03]
[1741136119628,6.9759,143.35,143.34,0.03]
[1741136122941,6.9755,143.36,143.34,0.03]
[1741136123436,81.8,143.38,143.34,20.50634261]
[1741136124233,81.8,143.38,143.34,0.03]
[1741136124437,81.8,143.38,143.34,20.50634261]
[1741136125442,20.50934261,143.4,143.36,40.47634261]
[1741136125443,0.033,143.4,143.36,40.47634261]
[1741136125738,0.033,143.4,143.37,20.0]
[1741136126243,0.033,143.4,143.36,40.47634261]
[1741136126443,0.033,143.4,143.36,352.47634261]
[1741136126623,0.033,143.4,143.36,332.0]
[1741136127030,0.033,143.4,143.36,352.47634261]
[1741136128935,0.033,143.4,143.36,338.9751]
[1741136129143,0.033,143.4,143.37,20.47634261]
[1741136129321,0.033,143.4,143.38,20.47634261]
[1741136131044,0.033,143.4,143.38,27.45054261]
[1741136132146,0.033,143.4,143.39,20.47634261]
[1741136132946,0.033,143.4,143.38,27.45054261]
[1741136134746,6.9739,143.39,143.34,102.69262972]
[1741136134939,20.50934261,143.4,143.34,29.01494261]
[1741136135140,0.033,143.4,143.36,20.76066575]
[1741136135335,0.033,143.4,143.38,20.47634261]
[1741136135530,0.033,143.4,143.37,40.47634261]
[1741136136555,0.033,143.4,143.37,20.0]
[1741136137352,0.033,143.4,143.37,47.45114261]
[1741136137850,0.033,143.4,143.37,20.0]
[1741136138052,0.033,143.4,143.37,47.45124261]
[1741136138747,0.033,143.4,143.38,20.47634261]
[1741136139152,0.033,143.4,143.38,27.45044261]
[1741136139336,0.033,143.4,143.38,6.9741]
[1741136139840,81.8,143.47,143.39,20.76066575]
[1741136140043,81.8,143.47,143.43,20.47634261]
[1741136140733,81.8,143.47,143.42,20.47634261]
[1741136142045,109.24654261,143.47,143.41,20.47634261]
[1741136142251,30.633,143.49,143.46,20.47634261]
[1741136142252,0.033,143.49,143.46,20.47634261]
[1741136142439,0.033,143.49,143.47,20.47634261]
[1741136143029,0.033,143.49,143.46,20.47634261]
[1741136143439,0.033,143.49,143.45,20.47634261]
[1741136143640,0.033,143.49,143.43,20.47634261]
[1741136143846,20.50934261,143.49,143.43,20.47634261]
[1741136144039,0.033,143.49,143.43,20.47634261]
[1741136145439,7.0021,143.49,143.43,20.47634261]
[1741136145642,7.0021,143.49,143.44,20.47634261]
[1741136146447,0.033,143.49,143.45,0.14216157]
[1741136146651,0.033,143.49,143.46,20.47634261]
[1741136146955,0.033,143.49,143.47,20.47634261]
[1741136147251,0.033,143.49,143.45,20.47634261]
[1741136147858,20.50934261,143.49,143.43,20.47634261]
[1741136148153,81.8,143.48,143.43,20.47634261]
[1741136149151,88.77,143.47,143.43,20.47634261]
[1741136149355,88.77,143.47,143.44,20.47634261]
[1741136149663,88.77,143.47,143.43,20.47634261]
[1741136150232,88.77,143.47,143.44,20.47634261]
[1741136150435,88.77,143.47,143.38,0.03]
[1741136150436,20.47634261,143.45,143.38,0.03]
[1741136150637,20.47634261,143.41,143.38,0.03]
[1741136150953,81.8,143.43,143.38,0.03]
[1741136151154,81.8,143.43,143.38,20.50634261]
[1741136152157,109.24854261,143.43,143.38,0.03]
[1741136152346,20.47634261,143.42,143.38,0.03]
[1741136152846,109.24854261,143.43,143.38,0.03]
[1741136153452,109.24854261,143.43,143.4,0.03]
[1741136154363,88.7722,143.43,143.4,0.03]
[1741136158773,7.7166,143.47,143.4,0.03]
[1741136158946,6.9702,143.47,143.43,20.47634261]
[1741136159155,6.9697,143.48,143.43,20.47634261]
[1741136159660,27.47854261,143.49,143.43,20.47634261]
[1741136160441,20.47634261,143.47,143.41,40.47634261]
[1741136160762,102.27634261,143.48,143.42,20.47634261]
[1741136160959,102.27634261,143.48,143.41,40.47634261]
[1741136161150,6.97,143.47,143.41,40.47634261]
[1741136161462,102.27634261,143.48,143.41,40.47634261]
[1741136161665,81.8,143.48,143.43,20.47634261]
[1741136161865,81.8,143.48,143.43,332.47634261]
[1741136162051,102.27634261,143.48,143.42,20.47634261]
[1741136162242,109.24604261,143.48,143.41,47.44924261]
[1741136162441,109.24604261,143.48,143.42,20.47634261]
[1741136163563,88.7697,143.48,143.42,27.44874261]
[1741136163759,88.7697,143.48,143.42,20.47634261]
[1741136163944,88.7697,143.48,143.42,27.44874261]
[1741136164770,109.24604261,143.48,143.42,20.47634261]
[1741136164949,81.8,143.47,143.42,20.47634261]
[1741136165348,81.8,143.47,143.42,27.44854261]
[1741136165556,88.7701,143.47,143.42,27.44854261]
[1741136166067,88.8031,143.47,143.42,27.44854261]
[1741136166263,81.833,143.47,143.42,27.44854261]
[1741136166456,88.8031,143.47,143.42,27.44854261]
[1741136167068,81.833,143.47,143.43,20.47634261]
[1741136167251,81.833,143.47,143.44,20.47634261]
[1741136167453,0.033,143.47,143.45,6.971]
[1741136168070,0.033,143.47,143.45,339.44734261]
[1741136168258,0.033,143.47,143.46,20.47634261]
[1741136169481,81.8,143.56,143.49,20.0]
[1741136169646,81.8,143.56,143.53,20.47634261]
[1741136170156,102.27634261,143.56,143.51,20.0]
[1741136170564,109.24204261,143.56,143.51,20.0]
[1741136171163,6.9992,143.55,143.51,20.0]
[1741136171366,27.44344261,143.53,143.47,20.47634261]
[1741136171573,81.8,143.52,143.47,20.47634261]
[1741136171758,81.8,143.52,143.48,20.47634261]
[1741136171958,81.8,143.52,143.49,20.47634261]
[1741136172266,81.8,143.52,143.5,20.47634261]
[1741136172586,88.7668,143.54,143.49,20.47634261]
[1741136172872,81.8,143.54,143.5,20.47634261]